Workbook

Sheet 営業日数
A2: 年間営業日数
D4: 年間営業日数
D5: =SUBTOTAL(2,D8:D374) -> 366
D6: ↑
C7: 日付 | D7: 曜日
B8: 開業年月日(設立日ではありません)の入力→ | C8: 2023-06-01 | D8: =WEEKDAY(C8,1) -> 5
C9: =C8+1 -> 2023-06-02 | D9: 6
C10: 2023-06-03 | D10: 7
C11: 2023-06-04 | D11: 1
C12: 2023-06-05 | D12: 2
C13: 2023-06-06 | D13: 3
C14: 2023-06-07 | D14: 4
C15: 2023-06-08 | D15: 5
C16: 2023-06-09 | D16: 6
C17: 2023-06-10 | D17: 7
C18: 2023-06-11 | D18: 1
C19: 2023-06-12 | D19: 2
C20: 2023-06-13 | D20: 3
C21: 2023-06-14 | D21: 4
C22: 2023-06-15 | D22: 5
C23: 2023-06-16 | D23: 6
C24: 2023-06-17 | D24: 7
C25: 2023-06-18 | D25: 1
C26: 2023-06-19 | D26: 2
C27: 2023-06-20 | D27: 3
C28: 2023-06-21 | D28: 4
C29: 2023-06-22 | D29: 5
C30: 2023-06-23 | D30: 6
C31: 2023-06-24 | D31: 7
C32: 2023-06-25 | D32: 1
C33: 2023-06-26 | D33: 2
C34: 2023-06-27 | D34: 3
C35: 2023-06-28 | D35: 4
C36: 2023-06-29 | D36: 5
C37: 2023-06-30 | D37: 6
C38: 2023-07-01 | D38: 7
C39: 2023-07-02 | D39: 1
C40: 2023-07-03 | D40: 2
C41: 2023-07-04 | D41: 3
C42: 2023-07-05 | D42: 4
C43: 2023-07-06 | D43: 5
C44: 2023-07-07 | D44: 6
C45: 2023-07-08 | D45: 7
C46: 2023-07-09 | D46: 1
C47: 2023-07-10 | D47: 2
C48: 2023-07-11 | D48: 3
C49: 2023-07-12 | D49: 4
C50: 2023-07-13 | D50: 5
C51: 2023-07-14 | D51: 6
C52: 2023-07-15 | D52: 7
C53: 2023-07-16 | D53: 1
C54: 2023-07-17 | D54: 2
C55: 2023-07-18 | D55: 3
C56: 2023-07-19 | D56: 4
C57: 2023-07-20 | D57: 5
C58: 2023-07-21 | D58: 6
C59: 2023-07-22 | D59: 7
C60: 2023-07-23 | D60: 1
C61: 2023-07-24 | D61: 2
C62: 2023-07-25 | D62: 3
C63: 2023-07-26 | D63: 4
C64: 2023-07-27 | D64: 5
C65: 2023-07-28 | D65: 6
C66: 2023-07-29 | D66: 7
C67: 2023-07-30 | D67: 1
C68: 2023-07-31 | D68: 2
C69: 2023-08-01 | D69: 3
C70: 2023-08-02 | D70: 4
C71: 2023-08-03 | D71: 5
C72: 2023-08-04 | D72: =WEEKDAY(C72,1) -> 6
C73: =C72+1 -> 2023-08-05 | D73: 7
C74: 2023-08-06 | D74: 1
C75: 2023-08-07 | D75: 2
C76: 2023-08-08 | D76: 3
C77: 2023-08-09 | D77: 4
C78: 2023-08-10 | D78: 5
C79: 2023-08-11 | D79: 6
C80: 2023-08-12 | D80: 7
C81: 2023-08-13 | D81: 1
C82: 2023-08-14 | D82: 2
C83: 2023-08-15 | D83: 3
C84: 2023-08-16 | D84: 4
C85: 2023-08-17 | D85: 5
C86: 2023-08-18 | D86: 6
C87: 2023-08-19 | D87: 7
C88: 2023-08-20 | D88: 1
C89: 2023-08-21 | D89: 2
C90: 2023-08-22 | D90: 3
C91: 2023-08-23 | D91: 4
C92: 2023-08-24 | D92: 5
C93: 2023-08-25 | D93: 6
C94: 2023-08-26 | D94: 7
C95: 2023-08-27 | D95: 1
C96: 2023-08-28 | D96: 2
C97: 2023-08-29 | D97: 3
C98: 2023-08-30 | D98: 4
C99: 2023-08-31 | D99: 5
C100: 2023-09-01 | D100: 6
C101: 2023-09-02 | D101: 7
C102: 2023-09-03 | D102: 1
C103: 2023-09-04 | D103: 2
C104: 2023-09-05 | D104: 3
C105: 2023-09-06 | D105: 4
C106: 2023-09-07 | D106: 5
C107: 2023-09-08 | D107: 6
C108: 2023-09-09 | D108: 7
C109: 2023-09-10 | D109: 1
C110: 2023-09-11 | D110: 2
C111: 2023-09-12 | D111: 3
C112: 2023-09-13 | D112: 4
C113: 2023-09-14 | D113: 5
C114: 2023-09-15 | D114: 6
C115: 2023-09-16 | D115: 7
C116: 2023-09-17 | D116: 1
C117: 2023-09-18 | D117: 2
C118: 2023-09-19 | D118: 3
C119: 2023-09-20 | D119: 4
C120: 2023-09-21 | D120: 5
C121: 2023-09-22 | D121: 6
C122: 2023-09-23 | D122: 7
C123: 2023-09-24 | D123: 1
C124: 2023-09-25 | D124: 2
C125: 2023-09-26 | D125: 3
C126: 2023-09-27 | D126: 4
C127: 2023-09-28 | D127: 5
C128: 2023-09-29 | D128: 6
C129: 2023-09-30 | D129: 7
C130: 2023-10-01 | D130: 1
C131: 2023-10-02 | D131: 2
C132: 2023-10-03 | D132: 3
C133: 2023-10-04 | D133: 4
C134: 2023-10-05 | D134: 5
C135: 2023-10-06 | D135: 6
C136: 2023-10-07 | D136: =WEEKDAY(C136,1) -> 7
C137: =C136+1 -> 2023-10-08 | D137: 1
C138: 2023-10-09 | D138: 2
C139: 2023-10-10 | D139: 3
C140: 2023-10-11 | D140: 4
C141: 2023-10-12 | D141: 5
C142: 2023-10-13 | D142: 6
C143: 2023-10-14 | D143: 7
C144: 2023-10-15 | D144: 1
C145: 2023-10-16 | D145: 2
C146: 2023-10-17 | D146: 3
C147: 2023-10-18 | D147: 4
C148: 2023-10-19 | D148: 5
C149: 2023-10-20 | D149: 6
C150: 2023-10-21 | D150: 7
C151: 2023-10-22 | D151: 1
C152: 2023-10-23 | D152: 2
C153: 2023-10-24 | D153: 3
C154: 2023-10-25 | D154: 4
C155: 2023-10-26 | D155: 5
C156: 2023-10-27 | D156: 6
C157: 2023-10-28 | D157: 7
C158: 2023-10-29 | D158: 1
C159: 2023-10-30 | D159: 2
C160: 2023-10-31 | D160: 3
C161: 2023-11-01 | D161: 4
C162: 2023-11-02 | D162: 5
C163: 2023-11-03 | D163: 6
C164: 2023-11-04 | D164: 7
C165: 2023-11-05 | D165: 1
C166: 2023-11-06 | D166: 2
C167: 2023-11-07 | D167: 3
C168: 2023-11-08 | D168: 4
C169: 2023-11-09 | D169: 5
C170: 2023-11-10 | D170: 6
C171: 2023-11-11 | D171: 7
C172: 2023-11-12 | D172: 1
C173: 2023-11-13 | D173: 2
C174: 2023-11-14 | D174: 3
C175: 2023-11-15 | D175: 4
C176: 2023-11-16 | D176: 5
C177: 2023-11-17 | D177: 6
C178: 2023-11-18 | D178: 7
C179: 2023-11-19 | D179: 1
C180: 2023-11-20 | D180: 2
C181: 2023-11-21 | D181: 3
C182: 2023-11-22 | D182: 4
C183: 2023-11-23 | D183: 5
C184: 2023-11-24 | D184: 6
C185: 2023-11-25 | D185: 7
C186: 2023-11-26 | D186: 1
C187: 2023-11-27 | D187: 2
C188: 2023-11-28 | D188: 3
C189: 2023-11-29 | D189: 4
C190: 2023-11-30 | D190: 5
C191: 2023-12-01 | D191: 6
C192: 2023-12-02 | D192: 7
C193: 2023-12-03 | D193: 1
C194: 2023-12-04 | D194: 2
C195: 2023-12-05 | D195: 3
C196: 2023-12-06 | D196: 4
C197: 2023-12-07 | D197: 5
C198: 2023-12-08 | D198: 6
C199: 2023-12-09 | D199: 7
C200: 2023-12-10 | D200: =WEEKDAY(C200,1) -> 1
C201: =C200+1 -> 2023-12-11 | D201: 2
C202: 2023-12-12 | D202: 3
... 172 more rows

Sheet 創業計画
A2: ①売上高と費用の見込み
A3: 単位：円
B5: 売上高
B6: 年間見込み | C6: ひと月あたり平均 | D6: 1日あたり平均 | E6: 限界利益率
A7: 集計 | B7: =SUM(H11:H17) -> 27759000 | C7: =B7/12 -> 2313250 | D7: =B7/営業日数!D5 -> 75844.2623 | E7: =IF(B21=0,0,100%-E21) -> 0.2029612018
J8: ↓60%なら「60」と入力します。
B9: 内訳 | C9: 売上単価 | D9: 売上数量 | G9: ひと月売上金額 | H9: 年間金額 | I9: 構成割合 | J9: 掛け取引割合
B10: 商品名・相手名 | D10: 1日あたり平均 | E10: ひと月あたり平均 | F10: 年間
B11: A商品・あああ社 | C11: 1200 | E11: 1000 | F11: =IF(D11="",E11*12,D11*営業日数!$D$5) -> 12000 | G11: =C11*F11/12 -> 1200000 | H11: =C11*F11 -> 14400000 | I11: =IF($B$7=0,"",H11/$B$7) -> 0.5187506755 | J11: 0.6
B12: B商品・いいい社 | C12: 2500 | D12: 5 | F12: =IF(D12="",E12*12,D12*営業日数!$D$5) -> 1830 | G12: =C12*F12/12 -> 381250 | H12: =C12*F12 -> 4575000 | I12: 0.1648114125 | J12: 1
B13: C商品・いいい社 | C13: 800 | D13: 30 | F13: =IF(D13="",E13*12,D13*営業日数!$D$5) -> 10980 | G13: 732000 | H13: 8784000 | I13: 0.316437912 | J13: 0
F14: =IF(D14="",E14*12,D14*営業日数!$D$5) -> 0 | G14: 0 | H14: 0 | I14: 0
F15: =IF(D15="",E15*12,D15*営業日数!$D$5) -> 0 | G15: 0 | H15: 0 | I15: 0
F16: =IF(D16="",E16*12,D16*営業日数!$D$5) -> 0 | G16: 0 | H16: 0 | I16: 0
F17: =IF(D17="",E17*12,D17*営業日数!$D$5) -> 0 | G17: 0 | H17: 0 | I17: 0
B19: 変動費(売上が動くと変わる費用)
B20: 年間見込み | C20: ひと月あたり平均 | D20: 1日あたり平均 | E20: 変動費率
A21: 集計 | B21: =SUM(H25:H31) -> 22125000 | C21: =B21/12 -> 1843750 | D21: =B21/営業日数!$D$5 -> 60450.81967 | E21: =IF(B7=0,0,B21/B7) -> 0.7970387982
J22: ↓60%なら「60」と入力します。
B23: 内訳 | C23: 変動費単価 | D23: 変動費数量 | G23: ひと月変動費額 | H23: 年間金額 | I23: 構成割合 | J23: 掛け取引割合
B24: 商品名・相手名 | D24: 1日あたり平均 | E24: ひと月あたり平均 | F24: 年間
B25: A商品・Ｘ社 | C25: 700 | E25: 1000 | F25: =IF(D25="",E25*12,D25*営業日数!$D$5) -> 12000 | G25: =C25*F25/12 -> 700000 | H25: =C25*F25 -> 8400000 | I25: =IF($B$21=0,"",H25/$B$21) -> 0.3796610169 | J25: 1
B26: B商品・Ｙ社 | C26: 1500 | D26: 5 | F26: =IF(D26="",E26*12,D26*営業日数!$D$5) -> 1830 | G26: =C26*F26/12 -> 228750 | H26: =C26*F26 -> 2745000 | I26: =IF($B$21=0,"",H26/$B$21) -> 0.1240677966 | J26: 1
B27: C商品・Ｚ社 | C27: 600 | D27: 30 | F27: =IF(D27="",E27*12,D27*営業日数!$D$5) -> 10980 | G27: 549000 | H27: 6588000 | I27: 0.2977627119 | J27: 0.8
B28: 運送費 | C28: 3000 | D28: 4 | F28: =IF(D28="",E28*12,D28*営業日数!$D$5) -> 1464 | G28: 366000 | H28: 4392000 | I28: 0.1985084746 | J28: 1
F29: =IF(D29="",E29*12,D29*営業日数!$D$5) -> 0 | G29: 0 | H29: 0 | I29: 0
F30: =IF(D30="",E30*12,D30*営業日数!$D$5) -> 0 | G30: 0 | H30: 0 | I30: 0
F31: =IF(D31="",E31*12,D31*営業日数!$D$5) -> 0 | G31: 0 | H31: 0 | I31: 0
D32: =IF($B$21=0,"",C32/$B$21) -> 0
B33: 設備と減価償却費 | G33: 固定費(売上が動いても変わらない費用)
C34: 購入金額合計 | D34: 年間減価償却費 | E34: ひと月あたり平均 | G34: 年間見込み | H34: ひと月あたり平均 | I34: 1日あたり平均
B35: 集計 | C35: =SUM(C38:C46) -> 2800000 | D35: =SUM(E38:E46) -> 360000 | E35: =D35/12 -> 30000 | F35: 集計 | G35: =SUM(I38:I59) -> 5440000 | H35: =G35/12 -> 453333.3333 | I35: =G35/営業日数!$D$5 -> 14863.38798
B37: 設備の種類 | C37: 購入金額 | D37: 耐用年数 | E37: 減価償却費 | G37: 内訳 | H37: ひと月金額 | I37: 年間金額 | J37: 構成割合
B38: 車 | C38: 800000 | D38: 5 | E38: =IF(D38=0,0,C38/D38) -> 160000 | G38: 家賃 | H38: 130000 | I38: =H38*12 -> 1560000 | J38: =IF($G$35=0,"",I38/$G$35) -> 0.2867647059
B39: 備品 | C39: 500000 | D39: 5 | E39: =IF(D39=0,0,C39/D39) -> 100000 | G39: 水道光熱費 | H39: 30000 | I39: =H39*12 -> 360000 | J39: 0.06617647059
B40: 内外装 | C40: 1000000 | D40: 10 | E40: 100000 | G40: 広告宣伝費 | H40: 50000 | I40: 600000 | J40: 0.1102941176
B41: 敷金 | C41: 500000 | D41: 0 | E41: 0 | G41: 給与手当 | H41: 200000 | I41: 2400000 | J41: 0.4411764706
E42: 0 | I42: 0 | J42: 0
E43: 0 | I43: 0 | J43: 0
E44: 0 | I44: 0 | J44: 0
E45: 0 | I45: 0 | J45: 0
E46: 0 | I46: 0 | J46: 0
I47: 0 | J47: 0
B48: 設備の主な耐用年数(壊れずに使えそうな期間)は次のとおりです。 | I48: 0 | J48: 0
I49: 0 | J49: 0
B50: ・車のうち、新車は５年、中古車は２年 | I50: 0 | J50: 0
B51: ・機械は１０年 | I51: 0 | J51: 0
B52: ・備品は５年 | I52: 0 | J52: 0
B53: ・ソフトウェア（ホームページ作成費用）は５年 | I53: 0 | J53: 0
B54: ・店舗の内装、外装工事は１０年 | I54: 0 | J54: 0
B55: ・その他金額が１つ１００万円を超えるものは１０年、超えないものは５年 | I55: 0 | J55: 0
I56: 0 | J56: 0
B57: 敷金・保証金は「購入金額」のみ入力します。
G58: =IF(H58=0,0,"支払利息") -> 支払利息 | H58: =D70 -> 13333.33333 | I58: 160000 | J58: =IF($G$35=0,"",I58/$G$35) -> 0.02941176471
G59: =IF(I59=0,0,"減価償却費") -> 減価償却費 | H59: =E35 -> 30000 | I59: 360000 | J59: =IF($G$35=0,"",I59/$G$35) -> 0.06617647059
A62: ②借入条件と返済に必要な利益
A63: =$A$3 -> 単位：円
C65: 融資希望額 | D65: 借入期間(年) | E65: 年利 | F65: 据置期間（ヶ月）
B66: 借入条件 | C66: 4000000 | D66: 10 | E66: 0.04
E67: ↑4%なら「4」と入力します。
C69: 年間 | D69: ひと月あたり平均
B70: 支払利息 | C70: =C66*E66 -> 160000 | D70: =C70/12 -> 13333.33333
B72: 簡易キャッシュフローの考えを使って、返済に必要な税引後利益を差し引き計算します。
C74: 年間 | F74: ひと月あたり平均
C75: 借金返済に | D75: 減価償却費（Ｂ） | F75: 借金返済に | G75: 減価償却費（Ｄ）
C76: 必要なお金（Ａ） | D76: =I59 -> 360000 | F76: 必要なお金（Ｃ） | G76: =D76/12 -> 30000
C77: =IF(D66=0,0,F77*12) -> 400000 | D77: 返済に必要な | F77: =IF(D66=0,0,C66/(D66*12-F66)) -> 33333.33333 | G77: 返済に必要な
D78: 税引後利益 | G78: 税引後利益
D79: （Ａ）-（Ｂ） | G79: （Ｃ）-（Ｄ）
D80: =C77-D76 -> 40000 | G80: =D80/12 -> 3333.333333
A83: ③返済に必要な売上利益と見込み売上利益との比較
A84: =$A$3 -> 単位：円
D86: 必要な売上利益 | E86: 見込み売上利益 | F86: 差額
C87: 売上高 | D87: =IF(D90=0,D89,D89/D90) -> 27131622.29 | E87: =B7 -> 27759000 | F87: =E87-D87 -> 627377.7068 | G87: ←利益に必要な売上高をさかのぼって計算しています。
C88: 変動費 | D88: =D87-D89 -> 21624955.63 | E88: =B21 -> 22125000 | F88: 500044.3734
C89: 限界利益 | D89: =D92+D91 -> 5506666.667 | E89: =E87-E88 -> 5634000 | F89: 127333.3333
C90: 限界利益率 | D90: =IF(C77=0,0,$E$7) -> 0.2029612018 | E90: =$E$7 -> 0.2029612018 | F90: =E90-D90 -> 0
C91: 固定費 | D91: =IF(C77=0,0,G35) -> 5440000 | E91: =G35 -> 5440000 | F91: 0
C92: 税引前利益 | D92: =IF(D93<=0,D93,D93/(1-G93)) -> 66666.66667 | E92: =E89-E91 -> 194000 | F92: 127333.3333 | G92: 法人税等 | H92: ←個人事業主の場合は「所得税等」としてください。
C93: 税引後利益 | D93: =D80 -> 40000 | E93: =IF(E92<=0,E92,E92*(1-$G$93)) -> 116400 | F93: 76400 | G93: 0.4 | H93: ←40%なら「40」と入力します。
C97: 必要な売上 | E97: 見込み売上 | G97: 損益分岐点売上
B98: 年間 | C98: =D87 -> 27131622.29 | D98: 年間 | E98: =E87 -> 27759000 | F98: 年間 | G98: =IF(E90=0,E91,E91/E90) -> 26803152.29
B100: ひと月あたり平均 | C100: =C98/12 -> 2260968.524 | D100: ひと月あたり平均 | E100: =E98/12 -> 2313250 | F100: ひと月あたり平均 | G100: =G98/12 -> 2233596.024
B102: 1日あたり平均 | C102: =C98/営業日数!$D$5 -> 74130.11556 | D102: 1日あたり平均 | E102: =E98/営業日数!$D$5 -> 75844.2623 | F102: 1日あたり平均 | G102: =G98/営業日数!$D$5 -> 73232.65653
C103: ↑ | G103: ↑
C104: 見込み売上がこれにとどかないと | G104: 見込み売上がこれにとどかないと
C105: いずれお金を返せなくなります。 | G105: 赤字になります。
A108: ④季節性の設定
A109: =$A$3 -> 単位：円
B110: 季節性→開業月の売上を100とします。
C111: =営業日数!C8 -> 2023-06-01 | D111: =DATE(YEAR(C111),MONTH(C111)+1,1) -> 2023-07-01 | E111: =DATE(YEAR(D111),MONTH(D111)+1,1) -> 2023-08-01 | F111: 2023-09-01 | G111: 2023-10-01 | H111: 2023-11-01 | I111: 数値合計
C112: 100 | D112: 120 | E112: 120 | F112: 100 | G112: 100 | H112: 110
C113: =DATE(YEAR(H111),MONTH(H111)+1,1) -> 2023-12-01 | D113: =DATE(YEAR(C113),MONTH(C113)+1,1) -> 2024-01-01 | E113: =DATE(YEAR(D113),MONTH(D113)+1,1) -> 2024-02-01 | F113: 2024-03-01 | G113: 2024-04-01 | H113: 2024-05-01 | I113: =SUM(C114:H114,C112:H112) -> 1345
C114: 120 | D114: 110 | E114: 110 | F114: 115 | G114: 120 | H114: 120
B117: 見込売上数量に季節性を反映
B118: 商品名・相手名 | C118: =営業日数!C8 -> 2023-06-01 | D118: =DATE(YEAR(C118),MONTH(C118)+1,1) -> 2023-07-01 | E118: =DATE(YEAR(D118),MONTH(D118)+1,1) -> 2023-08-01 | F118: 2023-09-01 | G118: 2023-10-01 | H118: 2023-11-01 | I118: 上期
B119: =B11 -> A商品・あああ社 | C119: =IF(C11="","",ROUNDDOWN(($H11/$C11)*($C$112/$I$113),0)) -> 892 | D119: =IF(C11="","",ROUNDDOWN(($H11/$C11)*($D$112/$I$113),0)) -> 1070 | E119: =IF(C11="","",ROUNDDOWN(($H11/$C11)*($E$112/$I$113),0)) -> 1070 | F119: =IF(C11="","",ROUNDDOWN(($H11/$C11)*($F$112/$I$113),0)) -> 892 | G119: =IF(C11="","",ROUNDDOWN(($H11/$C11)*($G$112/$I$113),0)) -> 892 | H119: =IF(C11="","",ROUNDDOWN(($H11/$C11)*($H$112/$I$113),0)) -> 981 | I119: =SUM(C119:H119) -> 5797
B120: =B12 -> B商品・いいい社 | C120: 136 | D120: 163 | E120: 163 | F120: 136 | G120: 136 | H120: 149 | I120: 883
B121: C商品・いいい社 | C121: 816 | D121: 979 | E121: 979 | F121: 816 | G121: 816 | H121: 897 | I121: 5303
B122: 0 | I122: 0
B123: 0 | I123: 0
B124: 0 | I124: 0
B125: 0 | I125: 0
B127: 商品名・相手名 | C127: =DATE(YEAR(H118),MONTH(H118)+1,1) -> 2023-12-01 | D127: =DATE(YEAR(C127),MONTH(C127)+1,1) -> 2024-01-01 | E127: =DATE(YEAR(D127),MONTH(D127)+1,1) -> 2024-02-01 | F127: 2024-03-01 | G127: 2024-04-01 | H127: 2024-05-01 | I127: 下期 | J127: 年間売上数量
B128: =B11 -> A商品・あああ社 | C128: =IF(C11="","",ROUNDDOWN(($H11/$C11)*($C$114/$I$113),0)) -> 1070 | D128: =IF(C11="","",ROUNDDOWN(($H11/$C11)*($D$114/$I$113),0)) -> 981 | E128: =IF(C11="","",ROUNDDOWN(($H11/$C11)*($E$114/$I$113),0)) -> 981 | F128: =IF(C11="","",ROUNDDOWN(($H11/$C11)*($F$114/$I$113),0)) -> 1026 | G128: =IF(C11="","",ROUNDDOWN(($H11/$C11)*($G$114/$I$113),0)) -> 1070 | H128: =IF(C11="","",I128-SUM(C128:G128)) -> 1075 | I128: =J128-I119 -> 6203 | J128: =F11 -> 12000
B129: =B12 -> B商品・いいい社 | C129: 163 | D129: 149 | E129: 149 | F129: 156 | G129: 163 | H129: =IF(C12="","",I129-SUM(C129:G129)) -> 167 | I129: =J129-I120 -> 947 | J129: =F12 -> 1830
B130: C商品・いいい社 | C130: 979 | D130: 897 | E130: 897 | F130: 938 | G130: 979 | H130: 987 | I130: 5677 | J130: 10980
B131: 0 | I131: 0 | J131: 0
B132: 0 | I132: 0 | J132: 0
B133: 0 | I133: 0 | J133: 0
B134: 0 | I134: 0 | J134: 0
B137: 見込変動費数量に季節性を反映
B138: 商品名・相手名 | C138: =営業日数!C28 -> 2023-06-21 | D138: =DATE(YEAR(C138),MONTH(C138)+1,1) -> 2023-07-01 | E138: =DATE(YEAR(D138),MONTH(D138)+1,1) -> 2023-08-01 | F138: =DATE(YEAR(E138),MONTH(E138)+1,1) -> 2023-09-01 | G138: =DATE(YEAR(F138),MONTH(F138)+1,1) -> 2023-10-01 | H138: =DATE(YEAR(G138),MONTH(G138)+1,1) -> 2023-11-01 | I138: 上期
B139: =B25 -> A商品・Ｘ社 | C139: =IF($C25="","",ROUNDDOWN(($H25/$C25)*($C$112/$I$113),0)) -> 892 | D139: =IF($C25="","",ROUNDDOWN(($H25/$C25)*($D$112/$I$113),0)) -> 1070 | E139: =IF($C25="","",ROUNDDOWN(($H25/$C25)*($E$112/$I$113),0)) -> 1070 | F139: =IF($C25="","",ROUNDDOWN(($H25/$C25)*($F$112/$I$113),0)) -> 892 | G139: =IF($C25="","",ROUNDDOWN(($H25/$C25)*($G$112/$I$113),0)) -> 892 | H139: =IF($C25="","",ROUNDDOWN(($H25/$C25)*($H$112/$I$113),0)) -> 981 | I139: =SUM(C139:H139) -> 5797
B140: =B26 -> B商品・Ｙ社 | C140: 136 | D140: 163 | E140: 163 | F140: 136 | G140: 136 | H140: 149 | I140: =SUM(C140:H140) -> 883
B141: C商品・Ｚ社 | C141: 816 | D141: 979 | E141: 979 | F141: 816 | G141: 816 | H141: 897 | I141: 5303
B142: 運送費 | C142: 108 | D142: 130 | E142: 130 | F142: 108 | G142: 108 | H142: 119 | I142: 703
B143: 0 | I143: 0
B144: =B30 -> 0 | I144: 0
B145: 0 | I145: 0
B147: 商品名・相手名 | C147: =DATE(YEAR(H138),MONTH(H138)+1,1) -> 2023-12-01 | D147: =DATE(YEAR(C147),MONTH(C147)+1,1) -> 2024-01-01 | E147: =DATE(YEAR(D147),MONTH(D147)+1,1) -> 2024-02-01 | F147: =DATE(YEAR(E147),MONTH(E147)+1,1) -> 2024-03-01 | G147: =DATE(YEAR(F147),MONTH(F147)+1,1) -> 2024-04-01 | H147: =DATE(YEAR(G147),MONTH(G147)+1,1) -> 2024-05-01 | I147: 下期 | J147: 年間変動費数量
B148: =B25 -> A商品・Ｘ社 | C148: =IF($C25="","",ROUNDDOWN(($H25/$C25)*($C$114/$I$113),0)) -> 1070 | D148: =IF($C25="","",ROUNDDOWN(($H25/$C25)*($D$114/$I$113),0)) -> 981 | E148: =IF($C25="","",ROUNDDOWN(($H25/$C25)*($E$114/$I$113),0)) -> 981 | F148: =IF($C25="","",ROUNDDOWN(($H25/$C25)*($F$114/$I$113),0)) -> 1026 | G148: =IF($C25="","",ROUNDDOWN(($H25/$C25)*($G$114/$I$113),0)) -> 1070 | H148: =IF($C25="","",I148-SUM(C148:G148)) -> 1075 | I148: =J148-I139 -> 6203 | J148: =F25 -> 12000
B149: =B26 -> B商品・Ｙ社 | C149: 163 | D149: 149 | E149: 149 | F149: 156 | G149: 163 | H149: =IF($C26="","",I149-SUM(C149:G149)) -> 167 | I149: =J149-I140 -> 947 | J149: =F26 -> 1830
B150: C商品・Ｚ社 | C150: 979 | D150: 897 | E150: 897 | F150: 938 | G150: 979 | H150: 987 | I150: 5677 | J150: 10980
B151: 運送費 | C151: 130 | D151: 119 | E151: 119 | F151: 125 | G151: 130 | H151: 138 | I151: 761 | J151: 1464
B152: 0 | I152: 0 | J152: 0
B153: 0 | I153: 0 | J153: 0
B154: 0 | I154: 0 | J154: 0
A158: ⑤季節性を反映した売上利益
A159: =$A$3 -> 単位：円
B161: 月次 | C161: =C118 -> 2023-06-01 | D161: =D118 -> 2023-07-01 | E161: 2023-08-01 | F161: 2023-09-01 | G161: 2023-10-01 | H161: 2023-11-01 | I161: =C127 -> 2023-12-01 | J161: =D127 -> 2024-01-01 | K161: 2024-02-01 | L161: 2024-03-01 | M161: =G127 -> 2024-04-01 | N161: =H127 -> 2024-05-01 | O161: 年間
B162: 売上 | C162: =SUM(C163:C169) -> 2063200 | D162: =SUM(D163:D169) -> 2474700 | E162: 2474700 | F162: 2063200 | G162: 2063200 | H162: 2267300 | I162: 2474700 | J162: =SUM(J163:J169) -> 2267300 | K162: =SUM(K163:K169) -> 2267300 | L162: =SUM(L163:L169) -> 2371600 | M162: =SUM(M163:M169) -> 2474700 | N162: =SUM(N163:N169) -> 2497100 | O162: =SUM(C162:N162) -> 27759000
B163: =B11 -> A商品・あああ社 | C163: =IF(C119="","",C119*$C11) -> 1070400 | D163: =IF(D119="","",D119*$C11) -> 1284000 | E163: =IF(E119="","",E119*$C11) -> 1284000 | F163: 1070400 | G163: 1070400 | H163: 1177200 | I163: =IF(C128="","",C128*$C11) -> 1284000 | J163: =IF(D128="","",D128*$C11) -> 1177200 | K163: 1177200 | L163: 1231200 | M163: 1284000 | N163: 1290000 | O163: =SUM(C163:N163) -> 14400000
B164: =B12 -> B商品・いいい社 | C164: =IF(C120="","",C120*$C12) -> 340000 | D164: 407500 | E164: 407500 | F164: 340000 | G164: 340000 | H164: 372500 | I164: =IF(C129="","",C129*$C12) -> 407500 | J164: =IF(D129="","",D129*$C12) -> 372500 | K164: =IF(E129="","",E129*$C12) -> 372500 | L164: =IF(F129="","",F129*$C12) -> 390000 | M164: =IF(G129="","",G129*$C12) -> 407500 | N164: =IF(H129="","",H129*$C12) -> 417500 | O164: 4575000
B165: C商品・いいい社 | C165: =IF(C121="","",C121*$C13) -> 652800 | D165: 783200 | E165: 783200 | F165: 652800 | G165: 652800 | H165: 717600 | I165: 783200 | J165: 717600 | K165: 717600 | L165: 750400 | M165: 783200 | N165: 789600 | O165: 8784000
B166: 0 | C166: =IF(C122="","",C122*$C14) ->  | O166: 0
B167: 0 | C167: =IF(C123="","",C123*$C15) ->  | O167: 0
B168: 0 | C168: =IF(C124="","",C124*$C16) ->  | O168: 0
B169: 0 | C169: =IF(C125="","",C125*$C17) ->  | O169: 0
B171: 変動費 | C171: =SUM(C172:C178) -> 1642000 | D171: 1970900 | E171: 1970900 | F171: 1642000 | G171: 1642000 | H171: 1805400 | I171: 1970900 | J171: 1805400 | K171: 1805400 | L171: 1890000 | M171: 1970900 | N171: 2009200 | O171: =SUM(C171:N171) -> 22125000
B172: =B25 -> A商品・Ｘ社 | C172: =IF(C139="","",C139*$C25) -> 624400 | D172: =IF(D139="","",D139*$C25) -> 749000 | E172: 749000 | F172: 624400 | G172: 624400 | H172: 686700 | I172: =IF(C148="","",C148*$C25) -> 749000 | J172: =IF(D148="","",D148*$C25) -> 686700 | K172: 686700 | L172: 718200 | M172: 749000 | N172: 752500 | O172: 8400000
B173: =B26 -> B商品・Ｙ社 | C173: =IF(C140="","",C140*$C26) -> 204000 | D173: 244500 | E173: 244500 | F173: 204000 | G173: 204000 | H173: 223500 | I173: =IF(C149="","",C149*$C26) -> 244500 | J173: =IF(D149="","",D149*$C26) -> 223500 | K173: =IF(E149="","",E149*$C26) -> 223500 | L173: =IF(F149="","",F149*$C26) -> 234000 | M173: =IF(G149="","",G149*$C26) -> 244500 | N173: =IF(H149="","",H149*$C26) -> 250500 | O173: 2745000
B174: C商品・Ｚ社 | C174: =IF(C141="","",C141*$C27) -> 489600 | D174: 587400 | E174: 587400 | F174: 489600 | G174: 489600 | H174: 538200 | I174: 587400 | J174: 538200 | K174: 538200 | L174: 562800 | M174: 587400 | N174: 592200 | O174: 6588000
B175: 運送費 | C175: =IF(C142="","",C142*$C28) -> 324000 | D175: 390000 | E175: 390000 | F175: 324000 | G175: 324000 | H175: 357000 | I175: 390000 | J175: 357000 | K175: 357000 | L175: 375000 | M175: 390000 | N175: 414000 | O175: 4392000
B176: 0 | C176: =IF(C143="","",C143*$C29) ->  | O176: 0
B177: 0 | C177: =IF(C144="","",C144*$C30) ->  | O177: 0
B178: 0 | C178: =IF(C145="","",C145*$C31) ->  | O178: 0
B180: 限界利益 | C180: =C162-C171 -> 421200 | D180: 503800 | E180: 503800 | F180: 421200 | G180: 421200 | H180: 461900 | I180: 503800 | J180: 461900 | K180: 461900 | L180: 481600 | M180: 503800 | N180: 487900 | O180: =SUM(C180:N180) -> 5634000
B182: 固定費 | C182: =SUM(C183:C204) -> 453333.3333 | D182: =SUM(D183:D204) -> 453333.3333 | E182: 453333.3333 | F182: 453333.3333 | G182: 453333.3333 | H182: 453333.3333 | I182: =SUM(I183:I204) -> 453333.3333 | J182: =SUM(J183:J204) -> 453333.3333 | K182: 453333.3333 | L182: 453333.3333 | M182: 453333.3333 | N182: 453333.3333 | O182: =SUM(C182:N182) -> 5440000
B183: =G38 -> 家賃 | C183: =$H$38 -> 130000 | D183: 130000 | E183: 130000 | F183: 130000 | G183: 130000 | H183: 130000 | I183: 130000 | J183: 130000 | K183: 130000 | L183: 130000 | M183: 130000 | N183: 130000 | O183: 1560000
B184: 水道光熱費 | C184: =$H$39 -> 30000 | D184: 30000 | E184: 30000 | F184: 30000 | G184: 30000 | H184: 30000 | I184: 30000 | J184: 30000 | K184: 30000 | L184: 30000 | M184: 30000 | N184: 30000 | O184: 360000
B185: 広告宣伝費 | C185: =$H$40 -> 50000 | D185: 50000 | E185: 50000 | F185: 50000 | G185: 50000 | H185: 50000 | I185: 50000 | J185: 50000 | K185: 50000 | L185: 50000 | M185: 50000 | N185: 50000 | O185: 600000
B186: 給与手当 | C186: =$H$41 -> 200000 | D186: 200000 | E186: 200000 | F186: 200000 | G186: 200000 | H186: 200000 | I186: 200000 | J186: 200000 | K186: 200000 | L186: 200000 | M186: 200000 | N186: 200000 | O186: 2400000
B187: 0 | C187: =$H$42 -> 0 | D187: 0 | E187: 0 | F187: 0 | G187: 0 | H187: 0 | I187: 0 | J187: 0 | K187: 0 | L187: 0 | M187: 0 | N187: 0 | O187: 0
B188: 0 | C188: =$H$43 -> 0 | D188: 0 | E188: 0 | F188: 0 | G188: 0 | H188: 0 | I188: 0 | J188: 0 | K188: 0 | L188: 0 | M188: 0 | N188: 0 | O188: 0
B189: 0 | C189: =$H$44 -> 0 | D189: 0 | E189: 0 | F189: 0 | G189: 0 | H189: 0 | I189: 0 | J189: 0 | K189: 0 | L189: 0 | M189: 0 | N189: 0 | O189: 0
B190: 0 | C190: =$H$45 -> 0 | D190: 0 | E190: 0 | F190: 0 | G190: 0 | H190: 0 | I190: 0 | J190: 0 | K190: 0 | L190: 0 | M190: 0 | N190: 0 | O190: 0
B191: 0 | C191: =$H$46 -> 0 | D191: 0 | E191: 0 | F191: 0 | G191: 0 | H191: 0 | I191: 0 | J191: 0 | K191: 0 | L191: 0 | M191: 0 | N191: 0 | O191: 0
B192: 0 | C192: =$H$47 -> 0 | D192: 0 | E192: 0 | F192: 0 | G192: 0 | H192: 0 | I192: 0 | J192: 0 | K192: 0 | L192: 0 | M192: 0 | N192: 0 | O192: 0
B193: 0 | C193: =$H$48 -> 0 | D193: 0 | E193: 0 | F193: 0 | G193: 0 | H193: 0 | I193: 0 | J193: 0 | K193: 0 | L193: 0 | M193: 0 | N193: 0 | O193: 0
B194: 0 | C194: =$H$49 -> 0 | D194: 0 | E194: 0 | F194: 0 | G194: 0 | H194: 0 | I194: 0 | J194: 0 | K194: 0 | L194: 0 | M194: 0 | N194: 0 | O194: 0
B195: 0 | C195: =$H$50 -> 0 | D195: 0 | E195: 0 | F195: 0 | G195: 0 | H195: 0 | I195: 0 | J195: 0 | K195: 0 | L195: 0 | M195: 0 | N195: 0 | O195: 0
B196: 0 | C196: =$H$51 -> 0 | D196: 0 | E196: 0 | F196: 0 | G196: 0 | H196: 0 | I196: 0 | J196: 0 | K196: 0 | L196: 0 | M196: 0 | N196: 0 | O196: 0
B197: 0 | C197: =$H$52 -> 0 | D197: 0 | E197: 0 | F197: 0 | G197: 0 | H197: 0 | I197: 0 | J197: 0 | K197: 0 | L197: 0 | M197: 0 | N197: 0 | O197: 0
B198: 0 | C198: =$H$53 -> 0 | D198: 0 | E198: 0 | F198: 0 | G198: 0 | H198: 0 | I198: 0 | J198: 0 | K198: 0 | L198: 0 | M198: 0 | N198: 0 | O198: 0
B199: 0 | C199: =$H$54 -> 0 | D199: 0 | E199: 0 | F199: 0 | G199: 0 | H199: 0 | I199: 0 | J199: 0 | K199: 0 | L199: 0 | M199: 0 | N199: 0 | O199: 0
B200: 0 | C200: =$H$55 -> 0 | D200: 0 | E200: 0 | F200: 0 | G200: 0 | H200: 0 | I200: 0 | J200: 0 | K200: 0 | L200: 0 | M200: 0 | N200: 0 | O200: 0
B201: 0 | C201: =$H$56 -> 0 | D201: 0 | E201: 0 | F201: 0 | G201: 0 | H201: 0 | I201: 0 | J201: 0 | K201: 0 | L201: 0 | M201: 0 | N201: 0 | O201: 0
B203: =G58 -> 支払利息 | C203: =$H$58 -> 13333.33333 | D203: 13333.33333 | E203: 13333.33333 | F203: 13333.33333 | G203: 13333.33333 | H203: 13333.33333 | I203: 13333.33333 | J203: 13333.33333 | K203: 13333.33333 | L203: 13333.33333 | M203: 13333.33333 | N203: 13333.33333 | O203: 160000
B204: =G59 -> 減価償却費 | C204: =$H$59 -> 30000 | D204: 30000 | E204: 30000 | F204: 30000 | G204: 30000 | H204: 30000 | I204: 30000 | J204: 30000 | K204: 30000 | L204: 30000 | M204: 30000 | N204: 30000 | O204: 360000
B206: 税引前利益 | C206: =C180-C182 -> -32133.33333 | D206: 50466.66667 | E206: 50466.66667 | F206: -32133.33333 | G206: -32133.33333 | H206: 8566.666667 | I206: 50466.66667 | J206: 8566.666667 | K206: 8566.666667 | L206: 28266.66667 | M206: 50466.66667 | N206: 34566.66667 | O206: =SUM(C206:N206) -> 194000
B207: =G92 -> 法人税等 | C207: =IF(C206<=0,0,C206*$G$93) -> 0 | D207: =IF(D206<=0,0,D206*$G$93) -> 20186.66667 | E207: 20186.66667 | F207: 0 | G207: 0 | H207: 3426.666667 | I207: 20186.66667 | J207: 3426.666667 | K207: 3426.666667 | L207: 11306.66667 | M207: 20186.66667 | N207: 13826.66667 | O207: 77600
B208: 税引後利益 | C208: =C206-C207 -> -32133.33333 | D208: =D206-D207 -> 30280 | E208: 30280 | F208: -32133.33333 | G208: -32133.33333 | H208: 5140 | I208: 30280 | J208: 5140 | K208: 5140 | L208: 16960 | M208: 30280 | N208: 20740 | O208: 116400
A211: ⑥創業計画の調整
A212: =$A$3 -> 単位：円
B214: 月次 | C214: =C161 -> 2023-06-01 | D214: =D161 -> 2023-07-01 | E214: 2023-08-01 | F214: 2023-09-01 | G214: 2023-10-01 | H214: 2023-11-01 | I214: 2023-12-01 | J214: 2024-01-01 | K214: 2024-02-01 | L214: 2024-03-01 | M214: 2024-04-01 | N214: 2024-05-01 | O214: 年間 | P214: 調整前 | Q214: 差額
B215: 売上 | C215: =SUM(C216:C222) -> 2059100 | D215: =SUM(D216:D222) -> 2469800 | E215: 2469800 | F215: 2059100 | G215: 2059100 | H215: 2265700 | I215: 2469800 | J215: 2265700 | K215: 2265700 | L215: 2370000 | M215: 2469800 | N215: 2498900 | O215: =SUM(C215:N215) -> 27722500 | P215: 27722500 | Q215: =O215-P215 -> 0
B216: A商品・あああ社 | C216: 1070400 | D216: 1284000 | E216: 1284000 | F216: 1070400 | G216: 1070400 | H216: 1177200 | I216: 1284000 | J216: 1177200 | K216: 1177200 | L216: 1231200 | M216: 1284000 | N216: 1290000 | O216: =SUM(C216:N216) -> 14400000 | P216: 14400000 | Q216: =O216-P216 -> 0
B217: B商品・いいい社 | C217: 337500 | D217: 405000 | E217: 405000 | F217: 337500 | G217: 337500 | H217: 372500 | I217: 405000 | J217: 372500 | K217: 372500 | L217: 390000 | M217: 405000 | N217: 422500 | O217: 4562500 | P217: 4562500 | Q217: 0
B218: C商品・いいい社 | C218: 651200 | D218: 780800 | E218: 780800 | F218: 651200 | G218: 651200 | H218: 716000 | I218: 780800 | J218: 716000 | K218: 716000 | L218: 748800 | M218: 780800 | N218: 786400 | O218: 8760000 | P218: 8760000 | Q218: 0
B219: 0 | O219: 0 | P219: 0 | Q219: 0
B220: 0 | O220: 0 | P220: 0 | Q220: 0
B221: 0 | O221: 0 | P221: 0 | Q221: 0
B222: 0 | O222: 0 | P222: 0 | Q222: 0
Q223: 0
B224: 変動費 | C224: =SUM(C225:C231) -> 1639300 | D224: 1967600 | E224: 1967600 | F224: 1639300 | G224: 1639300 | H224: 1804200 | I224: 1967600 | J224: 1804200 | K224: 1804200 | L224: 1885800 | M224: 1967600 | N224: 2000800 | O224: =SUM(C224:N224) -> 22087500 | P224: 22087500 | Q224: 0
B225: A商品・Ｘ社 | C225: 624400 | D225: 749000 | E225: 749000 | F225: 624400 | G225: 624400 | H225: 686700 | I225: 749000 | J225: 686700 | K225: 686700 | L225: 718200 | M225: 749000 | N225: 752500 | O225: 8400000 | P225: 8400000 | Q225: 0
B226: B商品・Ｙ社 | C226: 202500 | D226: 243000 | E226: 243000 | F226: 202500 | G226: 202500 | H226: 223500 | I226: 243000 | J226: 223500 | K226: 223500 | L226: 234000 | M226: 243000 | N226: 253500 | O226: 2737500 | P226: 2737500 | Q226: 0
B227: C商品・Ｚ社 | C227: 488400 | D227: 585600 | E227: 585600 | F227: 488400 | G227: 488400 | H227: 537000 | I227: 585600 | J227: 537000 | K227: 537000 | L227: 561600 | M227: 585600 | N227: 589800 | O227: 6570000 | P227: 6570000 | Q227: 0
B228: 運送費 | C228: 324000 | D228: 390000 | E228: 390000 | F228: 324000 | G228: 324000 | H228: 357000 | I228: 390000 | J228: 357000 | K228: 357000 | L228: 372000 | M228: 390000 | N228: 405000 | O228: 4380000 | P228: 4380000 | Q228: 0
B229: 0 | O229: 0 | P229: 0 | Q229: 0
B230: 0 | O230: 0 | P230: 0 | Q230: 0
B231: 0 | O231: 0 | P231: 0 | Q231: 0
Q232: 0
B233: 限界利益 | C233: =C215-C224 -> 419800 | D233: 502200 | E233: 502200 | F233: 419800 | G233: 419800 | H233: 461500 | I233: 502200 | J233: 461500 | K233: 461500 | L233: 484200 | M233: 502200 | N233: 498100 | O233: =SUM(C233:N233) -> 5635000 | P233: 5635000 | Q233: 0
Q234: 0
B235: 固定費 | C235: =SUM(C236:C257) -> 453333.3333 | D235: =SUM(D236:D257) -> 453333.3333 | E235: 453333.3333 | F235: 453333.3333 | G235: 453333.3333 | H235: 453333.3333 | I235: =SUM(I236:I257) -> 453333.3333 | J235: =SUM(J236:J257) -> 453333.3333 | K235: 453333.3333 | L235: 453333.3333 | M235: 453333.3333 | N235: 453333.3333 | O235: =SUM(C235:N235) -> 5440000 | P235: 5440000 | Q235: 0
B236: 家賃 | C236: 130000 | D236: 130000 | E236: 130000 | F236: 130000 | G236: 130000 | H236: 130000 | I236: 130000 | J236: 130000 | K236: 130000 | L236: 130000 | M236: 130000 | N236: 130000 | O236: 1560000 | P236: 1560000 | Q236: 0
B237: 水道光熱費 | C237: 30000 | D237: 30000 | E237: 30000 | F237: 30000 | G237: 30000 | H237: 30000 | I237: 30000 | J237: 30000 | K237: 30000 | L237: 30000 | M237: 30000 | N237: 30000 | O237: 360000 | P237: 360000 | Q237: 0
B238: 広告宣伝費 | C238: 50000 | D238: 50000 | E238: 50000 | F238: 50000 | G238: 50000 | H238: 50000 | I238: 50000 | J238: 50000 | K238: 50000 | L238: 50000 | M238: 50000 | N238: 50000 | O238: 600000 | P238: 600000 | Q238: 0
... 213 more rows
